Workbook

Sheet Menu
D3: SANITATION
D4: SubMenu | J4: =[1]Menu!$I$4 -> SA RANDS
J5: =[1]Menu!$I$5 -> 2011

Sheet Instructions (hidden)

Sheet Summary Instructions
C3: SANITATION - SUMMARY INSTRUCTIONS
D5: Capture anticipated and current Consumer information on this screen.
C8: Any cell with this background colour is a DATA INPUT cell.
C10: Data Required
C11: Consumer -
C12: No of Users - | D12: The number of consumers using the service (current as well anticipated). | F12: Municipal specific DATA INPUT
C13: Current Actual Tariff - | D13: Tariff charged in the last financial year for each Consumer group.
D16: Capture the costs for the budget vote on this screen
C19: Any cell with this background colour is a DATA INPUT cell.
D22: The Primary baseline is calculated and then displayed on this screen.
D25: TOTAL RING FENCED COSTS
C26: Primary Baseline | D26: TOTAL NO OF SANITATION USERS
D31: Input data for Strategic Decisions on this screen.
D32: Input data can be in the form of a number or a % change.
C34: Any cell with this background colour is an optional DATA INPUT cell.
D37: The revised Tariff takes into account input from Strategic Decisions and revises the Tariff accordingly
D41: This screen compares the Current Actual Tariff and Revenue to the Revised Tariff and Revenue.
C44: % CHANGE | D44: Use the %Change column to increase or decrease the Revised Tariff. As you enter the % change the Tariff and Revenue will change to reflect your input.
C46: Current Actual - Revised | D46: This column displays the difference between Tariffs together with a colour indicator.
C47: TARIFF
C49: PROFIT\LOSS | D49: This column displays the difference between Revenues together with a colour indicator.
C50: REVENUE

Sheet Data Capture Demand
C3: =Menu!D3&" - DATA CAPTURE: DEMAND PER MONTH" -> SANITATION - DATA CAPTURE: DEMAND PER MONTH
C5: FUTURE DEMAND | F5: HISTORICAL DEMAND
C7: ="Financial Year:"&" "&Menu!$J$5&"\"&Menu!$J$5+1 -> Financial Year: 2011\2012 | F7: =SUM(Menu!$J$5-1)&"\"&SUM(Menu!$J$5) -> 2010\2011
C8: CONSUMER | D8: NO OF USERS | F8: NO OF USERS | G8: CURRENT ACTUAL TARIFF per Month
C9: DOMESTIC
C10: Low Income | D10: 1000 | F10: 1000 | G10: 85
C11: Middle Income | D11: 4550 | F11: 4550 | G11: 85
C12: High Income | D12: 4650 | F12: 4550 | G12: 85
C13: Other | D13: 0 | F13: 0 | G13: 0
C14: Other | D14: 0 | F14: 0 | G14: 0
C15: Other | D15: 0 | F15: 0 | G15: 0
C16: Total No of Sanitation Users | D16: =SUM(D10:D15) -> 10200 | F16: =SUM(F10:F15) -> 10100
C18: INDUSTRIAL
C19: Toilets | D19: 1000 | F19: 1000 | G19: 85
C20: Urnials | D20: 1000 | F20: 1000 | G20: 85
C21: Type 3 | D21: 0 | F21: 0 | G21: 0
C22: Type 4 | D22: 0 | F22: 0 | G22: 0
C23: Type 5 | D23: 0 | F23: 0 | G23: 0
C24: Type 6 | D24: 0 | F24: 0 | G24: 0
C25: Type 7 | D25: 0 | F25: 0 | G25: 0
C26: Type 8 | D26: 0 | F26: 0 | G26: 0
C27: Type 9 | D27: 0 | F27: 0 | G27: 0
C28: Total No of Sanitation Users | D28: =SUM(D19:D27) -> 2000 | F28: =SUM(F19:F27) -> 2000
C30: COMMERCIAL
C31: Per Toilet Pan | D31: 500 | F31: 400 | G31: 85
C32: Per Urinal | D32: 500 | F32: 400 | G32: 0
C33: Type 3 | D33: 0 | F33: 0 | G33: 0
C34: Type 4 | D34: 0 | F34: 0 | G34: 0
C35: Type 5 | D35: 0 | F35: 0 | G35: 0
C36: Total No of Sanitation Users | D36: =SUM(D31:D35) -> 1000 | F36: =SUM(F31:F35) -> 800
C38: INSTITUTIONAL
C39: Municipal - toilets | D39: 250 | F39: 250 | G39: 60
C40: Municipal - Urinals | D40: 250 | F40: 250 | G40: 60
C41: Bona Fide Sports Clubs | D41: 0 | F41: 0 | G41: 0
C42: Other | D42: 0 | F42: 0 | G42: 0
C43: Other | D43: 0 | F43: 0 | G43: 0
C44: Other | D44: 0 | F44: 0 | G44: 0
C45: Other | D45: 0 | F45: 0 | G45: 0
C46: Other | D46: 0 | F46: 0 | G46: 0
C47: Other | D47: 0 | F47: 0 | G47: 0
C48: Other | D48: 0 | F48: 0 | G48: 0
C49: Total No of Sanitation Users | D49: =SUM(D39:D48) -> 500 | F49: =SUM(F39:F48) -> 500
C51: TOTAL NO OF SANITATION USERS | D51: =SUM(D16+D28+D36+D49) -> 13700 | F51: =SUM(F16+F28+F36+F49) -> 13400

Sheet Data Capture Costs
AY1: 0
AY2: 0.01
C3: =Menu!D3&" - DATA CAPTURE: COSTS BY BUDGET VOTE" -> SANITATION - DATA CAPTURE: COSTS BY BUDGET VOTE | AY3: 0.02
AY4: 0.08
C5: COSTS BY BUDGET VOTE | D5: =Menu!$J$4 -> SA RANDS | AY5: 0.09
C6: Costs | D6: Detail | E6: ="Year"&" "&Menu!$J$5&"\"&Menu!$J$5+1 -> Year 2011\2012 | AY6: 0.1
C7: Bulk Purchases: | D7: Bulk Purchases | E7: 2400000 | AY7: 0.11
C8: Employee Related Costs: | D8: Basic Salaries | E8: 6000000 | AY8: 0.12
C9: Employee Related Costs: | D9: Social Contributions | E9: 900000 | AY9: 0.13
C10: Repairs and Maintenance | D10: Repairs and Maintenance | E10: 300000 | AY10: 0.14
C11: Other Costs: | D11: General Costs | E11: 0 | AY11: 0.15
C12: Other Costs: | D12: Collection Commission | E12: 0 | AY12: 0.16
C13: Other Cost: | D13: Contracted Services | E13: 0 | AY13: 0.17
C14: Other Costs: | D14: Contributions to Provisions | E14: 0 | AY14: 0.18
C15: Other Costs: | D15: Debt Impairment | E15: 0 | AY15: 0.19
C16: Other Costs: | D16: Motor Vehicle Costs | E16: 360000 | AY16: 0.2
C17: Depreciation: | E17: 0 | AY17: 0.21
C18: External Interest: | E18: 0 | AY18: 0.22
C19: Reserves\Provisions for Capital Improvements: | E19: 0 | AY19: 0.23
C20: Other Costs: | E20: 720000 | AY20: 0.24
C21: Other Costs: | E21: 0 | AY21: 0.25
C22: Other Costs: | E22: 0 | AY22: 0.26
C23: Other Costs: | E23: 0 | AY23: 0.27
C24: Other Costs: | E24: 0 | AY24: 0.28
C25: Other Costs: | E25: 0 | AY25: 0.29
C26: Overhead Costs Re-Allocated (+) | E26: 1260000 | AY26: 0.3
C27: Overhead Costs Re-Allocated (-) | D27: Less | E27: 0 | AY27: 0.31
C28: Less Sundry Income | D28: Less Sundry Income Generated from Indirect Services | E28: 0 | AY28: 0.32
C29: TOTAL RING FENCED COSTS PER ANNUM | E29: =SUM(E7:E26)-E27-E28 -> 11940000 | AY29: 0.33
AY30: 0.34
C31: TOTAL RING FENCED COSTS PER MONTH | E31: =E29/12 -> 995000 | AY31: 0.35
AY32: 0.36
AY33: 0.37
AY34: 0.38
AY35: 0.39
AY36: 0.4
AY37: 0.41
AY38: 0.42
AY39: 0.43
AY40: 0.44
AY41: 0.45
AY42: 0.46
AY43: 0.47
AY44: 0.48
AY45: 0.49
AY46: 0.5
AY47: 0.51
AY48: 0.52
AY49: 0.53
AY50: 0.54
AY51: 0.55
AY52: 0.56
AY53: 0.57
AY54: 0.58
AY55: 0.59
AY56: 0.6
AY57: 0.61
AY58: 0.62
AY59: 0.63
AY60: 0.64
AY61: 0.65
AY62: 0.66
AY63: 0.67
AY64: 0.68
AY65: 0.69
AY66: 0.7
AY67: 0.71
AY68: 0.72
AY69: 0.73
AY70: 0.74
AY71: 0.75
AY72: 0.76
AY73: 0.77
AY74: 0.78
AY75: 0.79
AY76: 0.8
AY77: 0.81
AY78: 0.82
AY79: 0.83
AY80: 0.84
AY81: 0.85
AY82: 0.86
AY83: 0.87
AY84: 0.88
AY85: 0.89
AY86: 0.9
AY87: 0.91
AY88: 0.92
AY89: 0.93
AY90: 0.94
AY91: 0.95
AY92: 0.96
AY93: 0.97
AY94: 0.98
AY95: 0.99
AY96: 1

Sheet Primary Baseline Tariff
C3: PRIMARY BASELINE TARIFF
C5: Below is a basic tariff calculated per baseline unit.
C7: DETAIL | D7: TARIFF
C8: TOTAL COSTS MONTHLY | D8: ='Data Capture Costs'!E31 -> 995000
C9: ='Data Capture Demand'!C51 -> TOTAL NO OF SANITATION USERS | D9: ='Data Capture Demand'!D51 -> 13700
C10: MONTHLY TARIFF | D10: =IF(D8=0,0,D8/D9) -> 72.62773723

Sheet Strategic Decisions
BD1: Yes
C3: STRATEGIC DECISIONS
BD4: No
C5: FINANCIAL DECISIONS | D5: AMOUNT | E5: % | F5: % AMT | J5: REVISED PRIMARY BASELINE TARIFF
B6: 1 | C6: Do you wish to achieve a Surplus on this service? | D6: YES
D7: NO
C8: Enter Size of the Surplus | D8: 0 | E8: 0 | F8: =E8%*'Primary Baseline Tariff'!$D$8 -> 0 | J8: ='Revised Primary Baseline Tariff'!D10 -> 72.62773723
B10: 2 | C10: Are you willing to make a Deficit on this service? | D10: YES
D11: NO
C12: Enter Size of the Deficit | D12: 0 | E12: 0 | F12: =-(E12%)*'Primary Baseline Tariff'!$D$8 -> 0
J13: CHANGES TO COSTS
C14: AFFORDABILITY DECISIONS | D14: AMOUNT | E14: % | F14: % AMT
C15: Most of these decisions are contained in the municipality's Tariff policy and therefore already form part of the information used to populate the model. However the decisions can at this point be re-visited and altered as necessary before the tariff is finalised.
B16: 3 | C16: Do you plan to subsidise the delivery of this service (excluding Free Basic Services)? | D16: YES | I16: 1 | J16: =D8+F8 -> 0
D17: NO | I17: 2 | J17: =D12+F12 -> 0
C18: Enter Size of Subsidy | D18: 0 | E18: 0 | F18: =E18%*'Primary Baseline Tariff'!$D$8 -> 0 | I18: 3 | J18: =D18+F18 -> 0
B20: 4 | C20: Do you wish to limit the Size of the Tariff levied on certain type of consumers? | D20: CHANGE TARIFF | J20: =J16-J17+J18 -> 0
B22: 5 | C22: Do you wish to Escalate the Tariff levied on certain type of consumers? | D22: CHANGE TARIFF

Sheet Revised Primary Baseline Tariff
C3: REVISED PRIMARY BASELINE TARIFF
C5: After Strategic Decisions this is the revised tariff.
C7: DETAIL | D7: TARIFF
C8: ='Primary Baseline Tariff'!C8 -> TOTAL COSTS MONTHLY | D8: ='Primary Baseline Tariff'!D8+'Strategic Decisions'!J20 -> 995000
C9: ='Primary Baseline Tariff'!C9 -> TOTAL NO OF SANITATION USERS | D9: ='Primary Baseline Tariff'!D9 -> 13700
C10: ='Primary Baseline Tariff'!C10 -> MONTHLY TARIFF | D10: =IF(D$8=0,0,D8/D$9) -> 72.62773723

Sheet Test Revised Primary Baseline
C3: CURRENT & REVISED TARIFF COMPARISON MONTHLY
C5: ='Data Capture Demand'!C8 -> CONSUMER | D5: ='Data Capture Demand'!D8&" ("&Menu!J5&")" -> NO OF USERS (2011) | E5: CURRENT ACTUAL per month | G5: REVISED TARIFF per month | J5: AFFORDABILITY ADJUSTMENT TO REVISED PRIMARY BASELINE per month | N5: Current Actual - Revised | O5: PROFIT\LOSS
E6: TARIFF | F6: REVENUE | G6: TARIFF | H6: REVENUE | J6: % CHANGE | K6: TARIFF | L6: REVENUE | N6: TARIFF | O6: REVENUE
C7: =IF('Data Capture Demand'!C10="","",'Data Capture Demand'!C10) -> Low Income | D7: ='Data Capture Demand'!D10 -> 1000 | E7: ='Data Capture Demand'!G10 -> 85 | F7: =SUM(E7*'Data Capture Demand'!F10) -> 85000 | G7: ='Revised Primary Baseline Tariff'!$D$10 -> 72.62773723 | H7: =SUM(D7*G7) -> 72627.73723 | I7: 0 | J7: 0 | K7: =SUM(G7*J7%)+G7 -> 72.62773723 | L7: =D7*K7 -> 72627.73723 | N7: =K7-E7 -> -12.37226277 | O7: -12372.26277
C8: =IF('Data Capture Demand'!C11="","",'Data Capture Demand'!C11) -> Middle Income | D8: ='Data Capture Demand'!D11 -> 4550 | E8: ='Data Capture Demand'!G11 -> 85 | F8: =SUM(E8*'Data Capture Demand'!F11) -> 386750 | G8: ='Revised Primary Baseline Tariff'!$D$10 -> 72.62773723 | H8: 330456.2044 | I8: 0 | J8: 0 | K8: 72.62773723 | L8: 330456.2044 | N8: -12.37226277 | O8: -56293.79562
C9: =IF('Data Capture Demand'!C12="","",'Data Capture Demand'!C12) -> High Income | D9: ='Data Capture Demand'!D12 -> 4650 | E9: ='Data Capture Demand'!G12 -> 85 | F9: =SUM(E9*'Data Capture Demand'!F12) -> 386750 | G9: ='Revised Primary Baseline Tariff'!$D$10 -> 72.62773723 | H9: 337718.9781 | I9: 0 | J9: 0 | K9: 72.62773723 | L9: 337718.9781 | N9: -12.37226277 | O9: -49031.0219
C10: =IF('Data Capture Demand'!C13="","",'Data Capture Demand'!C13) -> Other | D10: ='Data Capture Demand'!D13 -> 0 | E10: ='Data Capture Demand'!G13 -> 0 | F10: =SUM(E10*'Data Capture Demand'!F13) -> 0 | G10: ='Revised Primary Baseline Tariff'!$D$10 -> 72.62773723 | H10: 0 | I10: 0 | J10: 0 | K10: 72.62773723 | L10: 0 | N10: 72.62773723 | O10: 0
C11: =IF('Data Capture Demand'!C14="","",'Data Capture Demand'!C14) -> Other | D11: ='Data Capture Demand'!D14 -> 0 | E11: ='Data Capture Demand'!G14 -> 0 | F11: =SUM(E11*'Data Capture Demand'!F14) -> 0 | G11: ='Revised Primary Baseline Tariff'!$D$10 -> 72.62773723 | H11: 0 | I11: 0 | J11: 0 | K11: 72.62773723 | L11: 0 | N11: 72.62773723 | O11: 0
C12: =IF('Data Capture Demand'!C15="","",'Data Capture Demand'!C15) -> Other | D12: ='Data Capture Demand'!D15 -> 0 | E12: ='Data Capture Demand'!G15 -> 0 | F12: =SUM(E12*'Data Capture Demand'!F15) -> 0 | G12: ='Revised Primary Baseline Tariff'!$D$10 -> 72.62773723 | H12: 0 | I12: 0 | J12: 0 | K12: 72.62773723 | L12: 0 | N12: 72.62773723 | O12: 0
C13: ='Data Capture Demand'!C9&" TOTAL" -> DOMESTIC TOTAL | D13: =SUM(D7:D12) -> 10200 | F13: =SUM(F7:F12) -> 858500 | H13: =SUM(H7:H12) -> 740802.9197 | L13: =SUM(L7:L12) -> 740802.9197 | O13: =SUM(O7:O12) -> -117697.0803
C14: =IF('Data Capture Demand'!C19="","",'Data Capture Demand'!C19) -> Toilets | D14: ='Data Capture Demand'!D19 -> 1000 | E14: ='Data Capture Demand'!G19 -> 85 | F14: =SUM(E14*'Data Capture Demand'!F19) -> 85000 | G14: ='Revised Primary Baseline Tariff'!$D$10 -> 72.62773723 | H14: =SUM(D14*G14) -> 72627.73723 | I14: 0 | J14: 0 | K14: =SUM(G14*J14%)+G14 -> 72.62773723 | L14: =D14*K14 -> 72627.73723 | N14: =K14-E14 -> -12.37226277 | O14: =L14-F14 -> -12372.26277
C15: =IF('Data Capture Demand'!C20="","",'Data Capture Demand'!C20) -> Urnials | D15: ='Data Capture Demand'!D20 -> 1000 | E15: ='Data Capture Demand'!G20 -> 85 | F15: =SUM(E15*'Data Capture Demand'!F20) -> 85000 | G15: ='Revised Primary Baseline Tariff'!$D$10 -> 72.62773723 | H15: 72627.73723 | I15: 0 | J15: 0 | K15: 72.62773723 | L15: 72627.73723 | N15: -12.37226277 | O15: -12372.26277
C16: =IF('Data Capture Demand'!C21="","",'Data Capture Demand'!C21) -> Type 3 | D16: ='Data Capture Demand'!D21 -> 0 | E16: ='Data Capture Demand'!G21 -> 0 | F16: =SUM(E16*'Data Capture Demand'!F21) -> 0 | G16: ='Revised Primary Baseline Tariff'!$D$10 -> 72.62773723 | H16: 0 | I16: 0 | J16: 0 | K16: 72.62773723 | L16: 0 | N16: 72.62773723 | O16: 0
C17: =IF('Data Capture Demand'!C22="","",'Data Capture Demand'!C22) -> Type 4 | D17: ='Data Capture Demand'!D22 -> 0 | E17: ='Data Capture Demand'!G22 -> 0 | F17: =SUM(E17*'Data Capture Demand'!F22) -> 0 | G17: ='Revised Primary Baseline Tariff'!$D$10 -> 72.62773723 | H17: 0 | I17: 0 | J17: 0 | K17: 72.62773723 | L17: 0 | N17: 72.62773723 | O17: 0
C18: =IF('Data Capture Demand'!C23="","",'Data Capture Demand'!C23) -> Type 5 | D18: ='Data Capture Demand'!D23 -> 0 | E18: ='Data Capture Demand'!G23 -> 0 | F18: =SUM(E18*'Data Capture Demand'!F23) -> 0 | G18: ='Revised Primary Baseline Tariff'!$D$10 -> 72.62773723 | H18: 0 | I18: 0 | J18: 0 | K18: 72.62773723 | L18: 0 | N18: 72.62773723 | O18: 0
C19: =IF('Data Capture Demand'!C24="","",'Data Capture Demand'!C24) -> Type 6 | D19: ='Data Capture Demand'!D24 -> 0 | E19: ='Data Capture Demand'!G24 -> 0 | F19: =SUM(E19*'Data Capture Demand'!F24) -> 0 | G19: ='Revised Primary Baseline Tariff'!$D$10 -> 72.62773723 | H19: 0 | I19: 0 | J19: 0 | K19: 72.62773723 | L19: 0 | N19: 72.62773723 | O19: 0
C20: =IF('Data Capture Demand'!C25="","",'Data Capture Demand'!C25) -> Type 7 | D20: ='Data Capture Demand'!D25 -> 0 | E20: ='Data Capture Demand'!G25 -> 0 | F20: =SUM(E20*'Data Capture Demand'!F25) -> 0 | G20: ='Revised Primary Baseline Tariff'!$D$10 -> 72.62773723 | H20: 0 | I20: 0 | J20: 0 | K20: 72.62773723 | L20: 0 | N20: 72.62773723 | O20: 0
C21: =IF('Data Capture Demand'!C26="","",'Data Capture Demand'!C26) -> Type 8 | D21: ='Data Capture Demand'!D26 -> 0 | E21: ='Data Capture Demand'!G26 -> 0 | F21: =SUM(E21*'Data Capture Demand'!F26) -> 0 | G21: ='Revised Primary Baseline Tariff'!$D$10 -> 72.62773723 | H21: 0 | I21: 0 | J21: 0 | K21: 72.62773723 | L21: 0 | N21: 72.62773723 | O21: 0
C22: =IF('Data Capture Demand'!C27="","",'Data Capture Demand'!C27) -> Type 9 | D22: ='Data Capture Demand'!D27 -> 0 | E22: ='Data Capture Demand'!G27 -> 0 | F22: =SUM(E22*'Data Capture Demand'!F27) -> 0 | G22: ='Revised Primary Baseline Tariff'!$D$10 -> 72.62773723 | H22: 0 | I22: 0 | J22: 0 | K22: 72.62773723 | L22: 0 | N22: 72.62773723 | O22: 0
C23: ='Data Capture Demand'!C18&" TOTAL" -> INDUSTRIAL TOTAL | D23: =SUM(D14:D22) -> 2000 | F23: =SUM(F14:F22) -> 170000 | H23: =SUM(H14:H22) -> 145255.4745 | L23: =SUM(L14:L22) -> 145255.4745 | O23: =SUM(O14:O22) -> -24744.52555
C24: =IF('Data Capture Demand'!C31="","",'Data Capture Demand'!C31) -> Per Toilet Pan | D24: ='Data Capture Demand'!D31 -> 500 | E24: ='Data Capture Demand'!G31 -> 85 | F24: =SUM(E24*'Data Capture Demand'!F31) -> 34000 | G24: ='Revised Primary Baseline Tariff'!$D$10 -> 72.62773723 | H24: =SUM(D24*G24) -> 36313.86861 | I24: 0 | J24: 0 | K24: =SUM(G24*J24%)+G24 -> 72.62773723 | L24: =D24*K24 -> 36313.86861 | N24: =K24-E24 -> -12.37226277 | O24: 2313.868613
C25: =IF('Data Capture Demand'!C32="","",'Data Capture Demand'!C32) -> Per Urinal | D25: ='Data Capture Demand'!D32 -> 500 | E25: ='Data Capture Demand'!G32 -> 0 | F25: =SUM(E25*'Data Capture Demand'!F32) -> 0 | G25: ='Revised Primary Baseline Tariff'!$D$10 -> 72.62773723 | H25: =SUM(D25*G25) -> 36313.86861 | I25: 0 | J25: 0 | K25: =SUM(G25*J25%)+G25 -> 72.62773723 | L25: =D25*K25 -> 36313.86861 | N25: 72.62773723 | O25: 36313.86861
C26: =IF('Data Capture Demand'!C33="","",'Data Capture Demand'!C33) -> Type 3 | D26: ='Data Capture Demand'!D33 -> 0 | E26: ='Data Capture Demand'!G33 -> 0 | F26: =SUM(E26*'Data Capture Demand'!F33) -> 0 | G26: ='Revised Primary Baseline Tariff'!$D$10 -> 72.62773723 | H26: =SUM(D26*G26) -> 0 | I26: 0 | J26: 0 | K26: =SUM(G26*J26%)+G26 -> 72.62773723 | L26: =D26*K26 -> 0 | N26: 72.62773723 | O26: 0
C27: =IF('Data Capture Demand'!C34="","",'Data Capture Demand'!C34) -> Type 4 | D27: ='Data Capture Demand'!D34 -> 0 | E27: ='Data Capture Demand'!G34 -> 0 | F27: =SUM(E27*'Data Capture Demand'!F34) -> 0 | G27: ='Revised Primary Baseline Tariff'!$D$10 -> 72.62773723 | H27: =SUM(D27*G27) -> 0 | I27: 0 | J27: 0 | K27: =SUM(G27*J27%)+G27 -> 72.62773723 | L27: =D27*K27 -> 0 | N27: 72.62773723 | O27: 0
C28: =IF('Data Capture Demand'!C35="","",'Data Capture Demand'!C35) -> Type 5 | D28: ='Data Capture Demand'!D35 -> 0 | E28: ='Data Capture Demand'!G35 -> 0 | F28: =SUM(E28*'Data Capture Demand'!F35) -> 0 | G28: ='Revised Primary Baseline Tariff'!$D$10 -> 72.62773723 | H28: =SUM(D28*G28) -> 0 | I28: 0 | J28: 0 | K28: =SUM(G28*J28%)+G28 -> 72.62773723 | L28: =D28*K28 -> 0 | N28: 72.62773723 | O28: 0
C29: ='Data Capture Demand'!C30&" TOTAL" -> COMMERCIAL TOTAL | D29: =SUM(D24:D28) -> 1000 | F29: =SUM(F24:F28) -> 34000 | H29: =SUM(H24:H28) -> 72627.73723 | L29: =SUM(L24:L28) -> 72627.73723 | O29: =SUM(O24:O28) -> 38627.73723
C30: =IF('Data Capture Demand'!C39="","",'Data Capture Demand'!C39) -> Municipal - toilets | D30: ='Data Capture Demand'!D39 -> 250 | E30: ='Data Capture Demand'!G39 -> 60 | F30: =SUM(E30*'Data Capture Demand'!F39) -> 15000 | G30: ='Revised Primary Baseline Tariff'!$D$10 -> 72.62773723 | H30: =SUM(D30*G30) -> 18156.93431 | I30: 0 | J30: 0 | K30: =SUM(G30*J30%)+G30 -> 72.62773723 | L30: =D30*K30 -> 18156.93431 | N30: =K30-E30 -> 12.62773723 | O30: =L30-F30 -> 3156.934307
C31: =IF('Data Capture Demand'!C40="","",'Data Capture Demand'!C40) -> Municipal - Urinals | D31: ='Data Capture Demand'!D40 -> 250 | E31: ='Data Capture Demand'!G40 -> 60 | F31: =SUM(E31*'Data Capture Demand'!F40) -> 15000 | G31: ='Revised Primary Baseline Tariff'!$D$10 -> 72.62773723 | H31: 18156.93431 | I31: 0 | J31: 0 | K31: 72.62773723 | L31: 18156.93431 | N31: 12.62773723 | O31: 3156.934307
C32: =IF('Data Capture Demand'!C41="","",'Data Capture Demand'!C41) -> Bona Fide Sports Clubs | D32: ='Data Capture Demand'!D41 -> 0 | E32: ='Data Capture Demand'!G41 -> 0 | F32: =SUM(E32*'Data Capture Demand'!F41) -> 0 | G32: ='Revised Primary Baseline Tariff'!$D$10 -> 72.62773723 | H32: 0 | I32: 0 | J32: 0 | K32: 72.62773723 | L32: 0 | N32: 72.62773723 | O32: 0
C33: =IF('Data Capture Demand'!C42="","",'Data Capture Demand'!C42) -> Other | D33: ='Data Capture Demand'!D42 -> 0 | E33: ='Data Capture Demand'!G42 -> 0 | F33: =SUM(E33*'Data Capture Demand'!F42) -> 0 | G33: ='Revised Primary Baseline Tariff'!$D$10 -> 72.62773723 | H33: 0 | I33: 0 | J33: 0 | K33: 72.62773723 | L33: 0 | N33: 72.62773723 | O33: 0
C34: =IF('Data Capture Demand'!C43="","",'Data Capture Demand'!C43) -> Other | D34: ='Data Capture Demand'!D43 -> 0 | E34: ='Data Capture Demand'!G43 -> 0 | F34: =SUM(E34*'Data Capture Demand'!F43) -> 0 | G34: ='Revised Primary Baseline Tariff'!$D$10 -> 72.62773723 | H34: 0 | I34: 0 | J34: 0 | K34: 72.62773723 | L34: 0 | N34: 72.62773723 | O34: 0
C35: =IF('Data Capture Demand'!C44="","",'Data Capture Demand'!C44) -> Other | D35: ='Data Capture Demand'!D44 -> 0 | E35: ='Data Capture Demand'!G44 -> 0 | F35: =SUM(E35*'Data Capture Demand'!F44) -> 0 | G35: ='Revised Primary Baseline Tariff'!$D$10 -> 72.62773723 | H35: 0 | I35: 0 | J35: 0 | K35: 72.62773723 | L35: 0 | N35: 72.62773723 | O35: 0
C36: =IF('Data Capture Demand'!C45="","",'Data Capture Demand'!C45) -> Other | D36: ='Data Capture Demand'!D45 -> 0 | E36: ='Data Capture Demand'!G45 -> 0 | F36: =SUM(E36*'Data Capture Demand'!F45) -> 0 | G36: ='Revised Primary Baseline Tariff'!$D$10 -> 72.62773723 | H36: 0 | I36: 0 | J36: 0 | K36: 72.62773723 | L36: 0 | N36: 72.62773723 | O36: 0
C37: =IF('Data Capture Demand'!C46="","",'Data Capture Demand'!C46) -> Other | D37: ='Data Capture Demand'!D46 -> 0 | E37: ='Data Capture Demand'!G46 -> 0 | F37: =SUM(E37*'Data Capture Demand'!F46) -> 0 | G37: ='Revised Primary Baseline Tariff'!$D$10 -> 72.62773723 | H37: 0 | I37: 0 | J37: 0 | K37: 72.62773723 | L37: 0 | N37: 72.62773723 | O37: 0
C38: =IF('Data Capture Demand'!C47="","",'Data Capture Demand'!C47) -> Other | D38: ='Data Capture Demand'!D47 -> 0 | E38: ='Data Capture Demand'!G47 -> 0 | F38: =SUM(E38*'Data Capture Demand'!F47) -> 0 | G38: ='Revised Primary Baseline Tariff'!$D$10 -> 72.62773723 | H38: 0 | I38: 0 | J38: 0 | K38: 72.62773723 | L38: 0 | N38: 72.62773723 | O38: 0
C39: =IF('Data Capture Demand'!C48="","",'Data Capture Demand'!C48) -> Other | D39: ='Data Capture Demand'!D48 -> 0 | E39: ='Data Capture Demand'!G48 -> 0 | F39: =SUM(E39*'Data Capture Demand'!F48) -> 0 | G39: ='Revised Primary Baseline Tariff'!$D$10 -> 72.62773723 | H39: 0 | I39: 0 | J39: 0 | K39: 72.62773723 | L39: 0 | N39: 72.62773723 | O39: 0
C40: ='Data Capture Demand'!C38&" TOTAL" -> INSTITUTIONAL TOTAL | D40: =SUM(D30:D39) -> 500 | F40: =SUM(F30:F39) -> 30000 | H40: =SUM(H30:H39) -> 36313.86861 | L40: =SUM(L30:L39) -> 36313.86861 | O40: =SUM(O30:O39) -> 6313.868613
C42: SUBTOTAL | D42: =SUM(D40+D29+D23+D13) -> 13700 | F42: =SUM(F40+F29+F23+F13) -> 1092500 | H42: =SUM(H40+H29+H23+H13) -> 995000 | L42: =SUM(L40+L29+L23+L13) -> 995000 | O42: =SUM(O40+O29+O23+O13) -> -97500
C44: FULL COST | D44: ='Data Capture Costs'!E31 -> 995000 | E44: CURRENT ACTUAL | K44: ANTICIPATED
E45: MONTHLY | G45: ANNUALLY | K45: MONTHLY | M45: ANNUALLY
E46: Current Revenue | F46: =F42 -> 1092500 | G46: =F46*12 -> 13110000 | K46: Revised Revenue | L46: =L42 -> 995000 | M46: =L46*12 -> 11940000
E47: PROFIT\LOSS | F47: =F46-D44 -> 97500 | G47: =F47*12 -> 1170000 | K47: PROFIT\LOSS | L47: =L46-D44 -> 0 | M47: =L47*12 -> 0
